bitfinex/quotes_ETHUSD_20250519
["timestamp","ask_amount","ask_price","bid_price","bid_amount"]
[1747665458469,17.399,2443.7,2443.0,5.33861151]
[1747665458774,21.49126781,2443.7,2443.1,4.09310066]
[1747665458959,21.49126781,2443.7,2443.3,4.09280224]
[1747665459142,17.399,2443.7,2443.3,4.09280224]
[1747665459546,17.399,2443.7,2443.0,1.24532832]
[1747665459547,17.399,2443.7,2443.4,4.09263353]
[1747665459747,8.695,2443.6,2443.0,1.24532832]
[1747665459947,8.695,2443.6,2443.5,4.0924076]
[1747665460353,9.4582,2443.6,2443.2,4.09289959]
[1747665460868,13.55060332,2443.6,2443.0,0.76]
[1747665461170,13.55060332,2443.6,2442.5,8.13404978]
[1747665461171,9.4582,2443.6,2443.3,4.09282397]
[1747665462876,9.4582,2443.6,2442.8,4.87375641]
[1747665463177,9.4582,2443.6,2443.3,4.09270942]
[1747665463477,13.5505235,2443.6,2443.2,4.0929222]
[1747665463873,9.4582,2443.6,2443.2,4.0929222]
[1747665464085,8.695,2443.6,2443.3,4.09274413]
[1747665464290,8.695,2443.6,2443.4,4.09252572]
[1747665464483,18.685,2443.6,2443.4,4.09252572]
[1747665464964,18.685,2443.6,2443.4,4.09258522]
[1747665465366,18.685,2443.6,2443.3,4.09278036]
[1747665465760,22.77732716,2443.6,2443.2,4.09292097]
[1747665465970,18.685,2443.6,2442.8,0.7802]
[1747665466149,0.7984,2443.3,2443.0,4.09330901]
[1747665466488,10.7884,2443.6,2443.3,4.09274825]
[1747665466669,8.694,2443.5,2443.3,4.09274825]
[1747665466986,9.99,2443.6,2443.1,0.04092878]
[1747665467191,8.694,2443.5,2443.4,4.09265777]
[1747665467718,18.683,2443.6,2443.5,4.09249028]
[1747665468449,18.683,2443.6,2443.4,4.89165845]
[1747665468651,18.683,2443.6,2443.3,4.09279972]
[1747665468860,18.683,2443.6,2443.4,4.09264485]
[1747665469262,9.99,2443.6,2443.5,4.09249028]
[1747665469489,18.683,2443.6,2443.5,4.09249028]
[1747665469660,18.683,2443.6,2443.4,4.09257325]
[1747665469866,18.683,2443.6,2443.4,4.09256776]
[1747665470270,18.683,2443.6,2443.5,4.09249028]
[1747665470597,17.396,2443.7,2443.6,4.0923228]
[1747665470758,17.396,2443.7,2443.5,5.71839608]
[1747665470759,17.396,2443.7,2443.5,4.09249028]
[1747665471071,17.396,2443.7,2443.4,4.09252235]
[1747665471395,17.396,2443.7,2443.5,4.09247688]
[1747665471791,17.396,2443.7,2443.6,4.0923228]
[1747665471988,17.396,2443.7,2443.5,4.09247688]
[1747665472367,17.396,2443.7,2443.6,4.0923228]
[1747665472562,17.396,2443.7,2443.5,4.09239705]
[1747665472797,17.396,2443.7,2443.5,4.09237065]
[1747665473498,17.396,2443.7,2443.4,4.0926564]
[1747665473666,21.48817934,2443.7,2443.3,4.09282527]
[1747665473867,0.8122,2443.6,2443.3,4.09282527]
[1747665474105,4.90461641,2443.6,2443.1,4.09301055]
[1747665474303,9.99,2443.5,2443.2,4.0929444]
[1747665474475,9.99,2443.5,2443.0,4.09332787]
[1747665474803,9.99,2443.5,2443.2,4.09297449]
[1747665475101,9.99,2443.5,2443.3,4.09280944]
[1747665475404,9.99,2443.5,2443.4,4.09265777]
[1747665475605,8.691,2443.4,2442.9,0.8064]
[1747665475910,8.691,2443.4,2443.3,4.09282527]
[1747665476068,9.99,2443.5,2443.4,4.09265777]
[1747665476267,18.681,2443.5,2443.4,4.09265777]
[1747665477499,18.681,2443.5,2443.0,0.13404978]
[1747665477685,18.681,2443.5,2443.3,4.09271997]
[1747665478088,18.681,2443.5,2443.3,4.09269909]
[1747665478300,18.681,2443.5,2443.4,4.09265777]
[1747665480505,9.99,2443.5,2443.4,4.88115777]
[1747665480711,8.698,2443.9,2443.4,4.88115777]
[1747665480893,9.99,2444.3,2444.2,4.09131822]
[1747665481083,9.99,2444.5,2444.4,4.09098347]
[1747665481270,8.698,2444.8,2444.7,4.09048144]
[1747665481475,17.387,2444.8,2444.7,4.09048144]
[1747665481871,17.387,2444.8,2443.7,0.7885]
[1747665482102,9.99,2444.7,2444.2,4.09130766]
[1747665482303,4.09108538,2444.4,2443.7,0.7885]
[1747665482509,17.387,2444.3,2443.9,4.09175209]
[1747665482805,21.47815526,2444.3,2443.9,4.09175209]
[1747665483004,4.09141444,2444.2,2443.6,4.22634281]
[1747665483211,0.7571,2444.1,2443.6,4.2262957]
[1747665483411,0.7571,2444.1,2443.8,4.09198309]
[1747665483719,4.84866686,2444.1,2443.6,4.22626088]
[1747665483875,0.7571,2444.1,2443.8,4.09186051]
[1747665484271,0.7571,2444.1,2443.9,4.09180221]
[1747665484703,8.687,2444.0,2443.9,4.09180221]
[1747665484905,8.687,2444.0,2443.6,0.13404978]
[1747665485084,8.687,2444.0,2443.7,4.09215301]
[1747665486080,8.687,2444.0,2443.7,4.09201688]
[1747665486305,8.687,2444.0,2443.8,4.09190562]
[1747665487230,8.686,2444.2,2443.7,0.8207]
[1747665487527,8.686,2444.2,2443.8,0.12783109]
[1747665487726,8.686,2444.2,2444.1,4.09148561]
[1747665488093,8.686,2444.2,2444.1,4.2193167]
[1747665488296,8.805,2444.6,2444.4,4.09097549]
[1747665488624,18.676,2444.5,2444.4,4.09098347]
[1747665489004,18.676,2444.5,2444.3,4.09104556]
[1747665489204,18.676,2444.5,2443.7,0.8207]
[1747665489414,18.676,2444.5,2444.4,4.09098347]
[1747665489721,22.76691245,2444.5,2444.0,4.09153298]
[1747665490025,18.676,2444.5,2444.4,4.09098347]
[1747665490514,18.674,2444.5,2444.4,4.09098347]
[1747665490712,9.99,2444.5,2444.4,4.09098347]
[1747665490926,9.99,2444.5,2444.4,4.98719311]
[1747665491628,9.99,2444.5,2444.4,4.09098347]
[1747665491845,9.99,2444.7,2444.6,4.09064877]
[1747665492044,9.99,2444.7,2444.6,4.86714877]
[1747665492528,17.369,2445.0,2444.9,4.09014683]
[1747665492705,8.684,2445.0,2444.9,4.09014683]
[1747665492905,8.684,2445.0,2444.6,0.7765]
[1747665493134,8.684,2445.0,2444.8,4.09030698]
[1747665493428,8.684,2445.0,2444.5,4.0907209]
[1747665493735,0.7885,2444.9,2444.6,4.09055989]
[1747665494332,0.7885,2444.9,2444.8,4.09031413]
[1747665494650,8.684,2445.0,2444.9,4.09014683]
[1747665494794,9.99,2445.3,2445.2,4.08964501]
[1747665494998,10.7785,2445.5,2445.3,4.089378]
[1747665495815,10.7785,2445.5,2445.2,4.08962159]
[1747665496012,10.7785,2445.5,2444.8,4.09014788]
[1747665496219,4.08938936,2445.4,2444.9,4.0900601]
[1747665496539,10.7785,2445.5,2445.1,4.08973097]
[1747665496701,10.7785,2445.5,2445.2,4.08963487]
[1747665496900,8.68,2445.4,2445.3,4.08947777]
[1747665497148,8.68,2445.4,2445.2,4.08957909]
[1747665497346,8.68,2445.4,2445.3,4.08947777]
[1747665497525,8.68,2445.4,2445.2,4.08954793]
[1747665497906,9.99,2445.5,2445.4,4.08931054]
[1747665498231,9.99,2445.5,2445.3,4.08939368]
[1747665498232,18.67,2445.5,2445.3,4.08939368]
[1747665498543,18.67,2445.5,2445.0,0.8149]
[1747665498837,18.67,2445.5,2445.3,4.08936788]
[1747665499039,18.67,2445.5,2445.3,4.08947777]
[1747665499243,18.67,2445.5,2445.2,4.0895658]
[1747665499742,18.67,2445.5,2445.3,4.08946704]
[1747665499928,8.678,2445.4,2445.3,4.08933614]
[1747665500126,9.99,2445.5,2445.4,4.08931054]
[1747665500127,18.668,2445.5,2445.4,4.08931054]
[1747665500333,9.99,2445.5,2445.4,4.08931054]
[1747665500499,8.678,2445.6,2445.5,4.08914332]
[1747665501947,8.678,2445.6,2445.4,4.08922939]
[1747665502143,8.678,2445.6,2445.5,4.08914332]
[1747665503130,8.678,2445.6,2445.4,4.08922137]
[1747665503333,12.76705823,2445.6,2445.1,4.08970173]
[1747665503502,0.8188,2445.5,2444.7,0.90554978]
[1747665503712,4.08948586,2445.3,2444.9,4.09002647]
[1747665503907,0.04106815,2445.2,2444.9,4.09002647]
[1747665504150,8.675,2445.1,2444.9,4.09003782]
[1747665504351,8.675,2445.1,2444.8,4.09031413]
[1747665504518,10.8088,2445.0,2444.7,0.13404978]
[1747665504922,10.8088,2445.0,2444.9,4.09014683]
[1747665505111,10.8088,2445.0,2444.8,4.0902584]
[1747665505515,10.8088,2445.0,2444.7,4.22445705]
[1747665506914,9.99,2445.6,2444.8,0.8113]
[1747665507109,8.673,2445.6,2445.5,4.08914332]
[1747665507344,8.673,2445.6,2445.3,4.08938669]
[1747665507529,8.673,2445.6,2444.9,0.1277597]
[1747665507530,8.673,2445.6,2445.4,4.08930121]
[1747665507721,8.673,2445.6,2445.5,4.08914332]
[1747665507921,8.673,2445.6,2445.3,4.08938409]
[1747665508743,8.673,2445.6,2445.4,4.08930532]
[1747665509040,10.79,2445.7,2445.6,4.08897612]
[1747665509250,18.662,2445.7,2445.5,4.08900723]
[1747665509543,9.99,2445.7,2445.6,4.08897612]
[1747665509729,1.13485127,2445.9,2445.2,0.7624]
[1747665509730,0.8281,2445.9,2445.2,0.7624]
[1747665509922,8.672,2445.8,2445.4,4.08928243]
[1747665510123,8.672,2445.8,2445.6,4.08889146]
[1747665510725,8.681,2446.0,2445.7,4.08880892]
[1747665510930,17.352,2446.0,2445.9,4.08847459]
[1747665511457,17.352,2446.0,2445.8,4.08856551]
[1747665512057,8.681,2446.0,2445.6,4.08893277]
[1747665512229,17.352,2446.0,2445.7,4.08878332]
[1747665512414,17.352,2446.0,2445.8,4.08864093]
[1747665512615,17.352,2446.0,2445.8,4.08855436]
[1747665512809,17.352,2446.0,2445.9,4.08847459]
[1747665513437,16.9702711,2446.2,2445.8,4.08855827]
[1747665513640,16.67,2446.2,2445.8,4.0884843]
[1747665513969,16.67,2446.2,2445.9,4.08843942]
[1747665514358,16.67,2446.2,2446.1,4.0881403]
[1747665514359,0.31155859,2446.2,2446.1,4.0881403]
[1747665515132,17.349,2446.5,2446.1,4.0881403]
[1747665515446,17.349,2446.5,2446.0,4.08826574]
[1747665515652,17.349,2446.5,2446.2,4.08797261]
[1747665516149,8.668,2446.4,2446.2,4.08783227]
[1747665516458,8.668,2446.4,2446.2,4.08787411]
[1747665516660,8.668,2446.4,2446.3,4.08780607]
[1747665516865,8.668,2446.4,2446.1,4.08813041]
[1747665516866,8.668,2446.4,2446.2,4.08791237]
[1747665517224,8.668,2446.4,2445.7,0.8325]
[1747665517530,0.7545,2446.2,2445.8,4.21626167]
[1747665517729,4.84247672,2446.2,2445.8,4.21632636]
[1747665518257,0.7545,2446.2,2445.7,4.08872161]
[1747665518461,4.84256463,2446.2,2445.8,4.08863553]
[1747665518627,4.84256463,2446.2,2445.7,4.08872503]
[1747665519345,4.08832589,2446.0,2445.6,4.22298325]
[1747665519545,4.08824244,2446.1,2445.7,4.08872809]
[1747665519727,8.665,2445.9,2445.6,4.22294238]
[1747665520056,8.665,2445.9,2445.6,4.0888926]
[1747665520281,8.665,2445.9,2445.7,4.08879885]
[1747665520459,9.99,2446.0,2445.8,4.08862815]
[1747665520670,8.665,2445.9,2445.8,4.08862815]
[1747665521528,18.654,2446.0,2445.7,4.08872813]
[1747665521865,18.654,2446.0,2445.4,0.8089]
[1747665522029,18.654,2446.0,2445.7,4.08869372]
[1747665522222,22.74238679,2446.0,2445.5,4.08898641]
[1747665522431,18.654,2446.0,2445.4,0.8089]
[1747665522629,4.08899699,2445.6,2445.5,0.12774146]
[1747665522877,14.07899699,2445.6,2445.5,0.12774146]
[1747665523090,15.39909699,2445.6,2445.5,0.12774146]
[1747665523366,19.3101,2445.6,2445.3,0.13404978]
[1747665523567,8.663,2445.5,2445.3,0.13404978]
[1747665523793,9.99,2445.4,2445.3,0.13404978]
[1747665524100,8.663,2445.5,2445.4,4.08931054]
[1747665524269,8.663,2445.5,2445.4,5.00085435]
[1747665524594,8.663,2445.5,2445.4,5.12860513]
[1747665525391,18.652,2445.8,2445.7,4.08880892]
[1747665525555,18.652,2445.8,2445.6,4.0889129]
[1747665525961,18.652,2445.8,2445.7,4.08880892]
[1747665526461,18.652,2445.8,2445.6,4.08892359]
[1747665527075,17.327,2446.1,2446.0,4.08830744]
[1747665527268,9.99,2446.3,2446.2,4.08797318]
[1747665527591,18.651,2446.3,2446.2,4.08797318]
[1747665527783,9.99,2446.3,2446.2,4.08797318]
[1747665528582,9.99,2446.3,2445.8,4.08864175]
[1747665528783,9.99,2446.3,2446.0,4.08819063]
[1747665528959,9.99,2446.3,2445.7,0.8123]
[1747665529291,0.7679,2446.1,2445.8,4.08854678]
[1747665529457,0.7679,2446.1,2445.8,4.21627517]
[1747665529660,0.7679,2446.1,2445.9,4.08844862]
[1747665529857,0.7679,2446.1,2446.0,4.08830744]
[1747665530094,8.659,2446.1,2446.0,4.08819622]
[1747665530330,9.99,2446.3,2446.0,4.08819622]
[1747665530455,8.659,2446.1,2446.0,4.08819622]
[1747665530654,8.659,2446.2,2446.0,4.08830744]
[1747665530892,8.659,2446.2,2446.0,4.0882134]
[1747665531099,8.659,2446.2,2446.1,4.0881403]
[1747665531990,8.659,2446.2,2445.7,4.08880215]
[1747665532211,8.659,2446.2,2445.9,4.08836061]
[1747665532572,10.8075,2446.4,2445.9,4.08847459]
[1747665532777,8.657,2446.3,2446.0,4.08821968]
[1747665533691,8.657,2446.3,2446.0,4.08829979]
[1747665534077,8.657,2446.3,2445.5,0.95804978]
[1747665534414,9.99,2446.2,2445.9,4.08839615]
[1747665534631,9.99,2446.2,2445.7,4.08866805]
[1747665534632,9.99,2446.2,2445.8,4.08858834]
[1747665534843,9.99,2446.2,2445.5,0.95804978]
[1747665535112,14.07806291,2446.2,2445.7,4.08870469]
[1747665535410,9.99,2446.2,2445.8,4.08861819]
[1747665535611,8.655,2446.1,2445.9,4.0883984]
[1747665535776,8.655,2446.1,2446.0,4.08830744]
[1747665535980,18.645,2446.1,2446.0,4.08830744]
[1747665537091,18.645,2446.1,2446.0,4.21602585]
[1747665538913,18.645,2446.1,2446.0,0.12771841]
[1747665539281,18.645,2446.1,2446.0,4.08830744]
[1747665540590,18.645,2446.1,2446.0,4.2160334]
[1747665540799,18.645,2446.1,2446.0,0.12772596]
[1747665541406,22.7331403,2446.1,2445.7,4.08878091]
[1747665541723,18.645,2446.1,2445.7,4.08878091]
[1747665541921,18.641,2446.1,2445.9,4.08840867]
[1747665542226,18.641,2446.1,2445.9,4.08839255]
[1747665542527,18.641,2446.1,2446.0,4.08830744]
[1747665542878,18.64,2446.1,2446.0,4.08830744]
[1747665543186,9.99,2446.1,2446.0,4.90597744]
[1747665543384,9.99,2446.1,2446.0,5.81979875]
[1747665544183,9.99,2446.1,2446.0,5.03369875]
[1747665544383,9.99,2446.1,2446.0,4.44380405]
[1747665545016,9.99,2446.1,2446.0,4.21602875]
[1747665545507,9.99,2446.3,2446.2,4.08797318]
[1747665546111,9.99,2446.4,2446.3,4.08780607]
[1747665546312,9.99,2446.4,2446.2,4.21559403]
[1747665546500,9.99,2446.4,2446.2,0.12771071]
[1747665546710,9.99,2446.4,2446.1,4.08804968]
[1747665546906,9.99,2446.4,2446.2,4.08796319]
[1747665547218,9.99,2446.4,2446.2,4.08786312]
[1747665547420,9.99,2446.4,2445.8,4.08863484]
[1747665547621,9.99,2446.4,2446.2,4.08789828]
[1747665550212,18.636,2446.4,2446.0,4.08822704]
[1747665550520,18.636,2446.4,2445.8,4.22262799]
[1747665550712,18.636,2446.4,2446.1,4.08803871]
[1747665550911,18.636,2446.4,2446.2,4.08790242]
[1747665551316,18.636,2446.4,2446.3,4.08780607]
[1747665551519,18.636,2446.4,2446.2,4.0878874]
[1747665552020,18.636,2446.4,2446.1,4.08813709]
[1747665552317,22.7236708,2446.4,2446.0,4.08826201]
[1747665552625,18.636,2446.4,2446.2,4.08786351]
[1747665553123,18.636,2446.4,2445.8,4.22264794]
[1747665553124,4.08847459,2445.9,2445.8,0.13404978]
[1747665553287,22.15697459,2445.9,2445.8,0.13404978]
[1747665553490,8.7795,2445.9,2445.8,0.13404978]
[1747665553689,30.15697459,2445.9,2445.8,0.13404978]
[1747665553912,30.70697459,2445.9,2445.8,0.13404978]
[1747665554321,30.70697459,2445.9,2445.2,4.08964287]
[1747665554322,4.0888844,2445.7,2445.2,4.08964287]
[1747665555135,26.6185,2445.9,2445.3,0.12776035]
[1747665555435,21.37665565,2445.8,2445.3,4.08943642]
[1747665555829,21.37673225,2445.8,2445.3,4.08943642]
[1747665556031,8.643,2445.7,2445.4,4.08928399]
[1747665556225,8.643,2445.7,2445.4,0.12775478]
[1747665556534,8.643,2445.7,2445.3,4.49832472]
[1747665557034,0.7847,2445.4,2445.0,0.13404978]
[1747665557329,8.7847,2445.6,2445.1,4.08975037]
[1747665557534,8.7847,2445.6,2445.2,4.0895458]
[1747665557739,4.08917045,2445.5,2445.1,4.21750296]
[1747665557937,4.08933983,2445.4,2445.0,0.13404978]
[1747665558143,10.03106815,2445.3,2445.0,0.13404978]
[1747665558305,13.55010185,2445.2,2445.0,0.13404978]
[1747665558500,9.99,2445.1,2445.0,0.13404978]
[1747665558732,9.99,2445.1,2445.0,4.22402933]
[1747665558932,9.99,2445.1,2445.0,0.13404978]
[1747665559233,18.632,2445.1,2445.0,4.22402933]
[1747665559434,18.632,2445.1,2445.0,5.7762598]
[1747665559737,18.632,2445.1,2445.0,5.76997652]
[1747665559933,18.632,2445.1,2444.8,4.09020293]
[1747665560231,18.632,2445.1,2444.7,0.8166]
[1747665560232,18.632,2445.1,2444.7,4.09042218]
[1747665560436,18.632,2445.1,2444.5,0.95064978]
[1747665560437,22.72182587,2445.1,2444.6,4.09056582]
[1747665560738,18.632,2445.1,2444.7,4.09038573]
[1747665561247,18.632,2445.1,2445.0,4.08997955]
[1747665562008,18.632,2445.1,2444.9,4.09007302]
[1747665562206,18.631,2445.1,2444.9,4.09007302]
[1747665562439,18.631,2445.1,2444.5,0.95064978]
[1747665562636,18.631,2445.1,2444.8,4.09016851]
[1747665563339,18.631,2445.1,2444.5,4.90740428]
[1747665563650,18.631,2445.1,2444.9,4.09006956]
[1747665563959,0.8055,2445.0,2444.4,0.13404978]
[1747665564253,8.648,2444.9,2444.4,4.22491684]
[1747665564543,12.73822763,2444.9,2444.5,4.09078943]
[1747665564964,4.09039731,2444.8,2444.4,0.13404978]
[1747665565109,12.73823983,2444.9,2444.4,0.13404978]
[1747665565307,8.648,2444.9,2444.4,0.13404978]
[1747665565510,8.648,2444.9,2444.5,4.09081611]
[1747665565921,8.648,2444.9,2444.4,0.13404978]
[1747665566344,8.639,2444.8,2444.4,4.09087927]
[1747665566661,4.09049882,2444.7,2444.3,4.09109891]
[1747665566822,8.639,2444.8,2444.1,0.8324]
[1747665567141,8.639,2444.8,2444.7,4.09048144]
[1747665567321,8.639,2444.8,2444.6,4.09056138]
[1747665567525,8.639,2444.8,2444.3,4.09115084]
[1747665567873,8.638,2444.8,2444.7,4.09048144]
[1747665568438,8.638,2444.8,2444.3,0.49235508]
[1747665568661,8.638,2444.8,2444.5,4.09080845]
[1747665568819,8.638,2444.8,2444.5,4.09066081]
[1747665569154,9.99,2445.1,2444.3,4.9232401]
[1747665569355,8.638,2444.8,2444.7,4.09037498]
[1747665569567,8.638,2444.8,2444.3,0.8321]
[1747665569771,8.638,2444.8,2444.5,4.09067679]
[1747665570127,8.638,2444.8,2444.6,4.09060399]
[1747665570331,8.638,2444.8,2444.7,4.09048144]
[1747665570526,8.638,2444.8,2444.6,4.0905655]
[1747665570927,8.638,2444.8,2444.7,4.09048144]
[1747665571563,8.638,2444.8,2444.6,4.09056251]
[1747665571733,8.637,2444.8,2444.6,4.09056251]
[1747665572665,8.637,2444.8,2444.7,4.09048144]
[1747665573027,8.637,2444.8,2444.6,4.09055983]
[1747665573566,8.637,2444.8,2444.4,4.09092092]
[1747665573755,0.807,2444.7,2444.4,4.09092092]
[1747665573950,0.807,2444.7,2444.5,4.09081295]
[1747665574125,0.807,2444.7,2444.4,4.09089086]
[1747665574327,0.807,2444.7,2444.3,4.09108481]
[1747665574328,0.807,2444.7,2444.5,4.09081598]
[1747665575163,4.89753783,2444.7,2444.3,4.09107996]
[1747665575388,14.08067438,2444.6,2444.1,4.88094298]
[1747665575543,4.9000956,2444.2,2443.9,0.13404978]
[1747665575741,8.635,2444.1,2443.9,0.13404978]
[1747665575941,18.625,2444.1,2443.9,4.22585972]
[1747665576272,27.276,2444.1,2443.9,4.22579017]
[1747665576449,27.276,2444.1,2443.9,0.13404978]
[1747665576859,4.09165302,2444.0,2443.9,0.13404978]
[1747665577181,12.09165302,2444.0,2443.9,0.13404978]
[1747665578282,4.09187215,2443.9,2443.4,4.09254693]
[1747665578483,9.99,2443.8,2443.5,4.09248225]
[1747665578687,9.99,2443.8,2443.4,4.09261569]
[1747665578989,12.40396118,2444.0,2443.6,4.0923228]
[1747665578990,8.633,2443.7,2443.6,4.0923228]
[1747665580463,8.633,2443.7,2443.4,4.58417318]
[1747665580775,8.633,2443.7,2443.6,4.0923228]
[1747665581758,9.99,2443.9,2443.8,4.09198788]
[1747665581960,18.623,2443.9,2443.8,4.09198788]
[1747665582373,18.623,2443.9,2443.7,4.09206386]
[1747665583081,18.623,2443.9,2443.5,4.09240202]
[1747665583288,18.623,2443.9,2443.6,4.09223897]
[1747665583450,18.623,2443.9,2443.7,4.09214879]
[1747665583647,18.623,2443.9,2443.8,4.09198788]
[1747665583873,18.623,2443.9,2443.3,4.91553316]
[1747665584149,18.623,2443.9,2443.7,4.09206073]
[1747665585389,18.623,2443.9,2443.6,4.09222463]
[1747665585591,18.623,2443.9,2443.7,4.0921453]
[1747665586087,18.623,2443.9,2443.4,4.09260163]
[1747665586273,22.71485085,2443.9,2443.5,4.09242458]
[1747665586485,18.623,2443.9,2443.6,4.092306]
[1747665586684,18.623,2443.9,2443.5,4.09242458]
[1747665586685,9.99,2443.9,2443.8,4.09198788]
[1747665586888,18.621,2443.9,2443.8,4.09198788]
[1747665587104,9.99,2443.9,2443.8,4.09198788]
[1747665587256,18.621,2443.9,2443.8,4.09198788]
[1747665587452,18.621,2443.9,2443.7,4.09205987]
[1747665587679,18.621,2443.9,2443.5,4.09236921]
[1747665587926,18.621,2443.9,2443.7,4.09209119]
[1747665588190,18.621,2443.9,2443.3,4.91561854]
[1747665588389,18.621,2443.9,2443.7,4.09211098]
[1747665588586,9.99,2443.9,2443.8,4.09198788]
[1747665588778,18.62,2443.9,2443.7,4.09206214]
[1747665589293,18.62,2443.9,2443.8,4.09198788]
[1747665589485,18.62,2443.9,2443.3,0.8228]
[1747665589486,18.62,2443.9,2443.7,4.092068]
[1747665589694,18.62,2443.9,2443.6,4.09230651]
[1747665590087,18.62,2443.9,2443.5,4.09239261]
[1747665590286,18.62,2443.9,2443.3,0.8228]
[1747665590470,18.62,2443.9,2443.6,4.0922559]
[1747665590992,18.62,2443.9,2443.7,4.0921494]
[1747665591190,18.62,2443.9,2443.8,4.09198788]
[1747665591700,18.62,2443.9,2443.7,4.09207901]
[1747665591891,18.62,2443.9,2443.8,4.09198788]
[1747665592191,18.62,2443.9,2443.4,4.09265777]
[1747665592375,18.62,2443.9,2443.8,4.09198788]
[1747665592978,18.62,2443.9,2443.7,4.09208639]
[1747665593290,18.62,2443.9,2443.8,4.09198788]
[1747665593486,18.62,2443.9,2443.5,4.09249028]
[1747665593797,18.62,2443.9,2443.6,4.09221635]
[1747665594127,18.62,2443.9,2443.6,4.0921969]
[1747665594268,22.71183433,2443.9,2443.5,4.09241549]
[1747665594467,18.62,2443.9,2443.5,4.09241549]
[1747665594694,18.62,2443.9,2443.7,4.09213901]
[1747665594881,18.62,2443.9,2443.8,4.09198788]
[1747665595079,9.99,2443.9,2443.8,4.09198788]
[1747665595412,18.616,2443.9,2443.8,4.09198788]
[1747665595986,9.99,2443.9,2443.8,4.09198788]
[1747665596181,9.99,2443.9,2443.7,4.84427184]
[1747665596516,18.615,2444.0,2443.6,4.09227574]
[1747665596689,18.615,2444.0,2443.7,4.21990331]
[1747665597205,18.615,2444.0,2443.7,4.09206578]
[1747665597509,18.615,2444.0,2443.8,4.09193583]
[1747665597703,18.615,2444.0,2443.7,4.09205054]
[1747665597905,18.615,2444.0,2443.8,4.09198283]
[1747665598496,18.615,2444.0,2443.9,4.09182045]
[1747665599986,18.615,2444.0,2443.9,4.21965319]
[1747665600217,9.99,2444.0,2443.9,4.21965319]
[1747665600622,9.99,2444.0,2443.9,5.04375319]
[1747665601300,9.99,2444.0,2443.9,0.12783274]
[1747665601510,9.99,2444.0,2443.9,4.21965319]
[1747665601817,9.99,2444.0,2443.9,0.12783274]
[1747665602016,10.7792,2444.0,2443.9,0.12783274]
[1747665603599,23.50685302,2444.0,2443.9,0.12783274]
[1747665603919,19.71982037,2444.0,2443.7,4.09214067]
[1747665604122,23.81149462,2444.0,2443.8,0.12784142]
[1747665604492,19.71982037,2444.0,2443.8,0.12784142]
[1747665605023,19.71982037,2444.0,2443.7,4.09215503]
[1747665605392,19.71982037,2444.0,2443.8,0.12784232]
[1747665605604,2.00872685,2443.9,2443.8,0.12784232]
[1747665605956,14.14171125,2443.9,2443.5,0.13404978]
[1747665606105,8.618,2443.8,2443.5,0.13404978]
[1747665606302,8.618,2443.8,2443.6,0.12785736]
[1747665606506,19.4152,2444.0,2443.8,4.09195231]
[1747665606715,9.3565,2444.0,2443.9,4.09182045]
[1747665607047,9.3565,2444.0,2443.9,4.21967781]
[1747665607254,9.3565,2444.0,2443.9,5.81064082]
[1747665607651,9.3565,2444.0,2443.9,5.05084082]
[1747665607851,35.6625,2444.4,2444.3,4.09115084]
[1747665608032,44.2795,2444.4,2444.3,4.09115084]
[1747665608220,44.2795,2444.4,2444.3,4.2190082]
[1747665608420,17.9725,2444.4,2444.3,4.2190082]
[1747665608822,9.3565,2444.4,2444.3,4.2190082]
[1747665609442,9.3565,2444.4,2444.3,5.12684807]
[1747665609646,9.4009,2445.0,2444.5,4.09077886]
[1747665609861,17.23,2445.0,2444.6,4.87918602]
[1747665610026,17.23,2445.0,2444.7,4.09033783]
[1747665610347,17.23,2445.0,2444.9,4.09014683]
[1747665610652,0.30152448,2445.3,2445.0,4.08997955]
[1747665610950,8.615,2445.1,2444.9,4.09011076]
[1747665611538,8.614,2445.2,2445.0,4.08997955]
[1747665611870,9.4336,2445.9,2445.6,4.08894721]
[1747665612180,9.4336,2445.9,2445.5,4.08909334]
[1747665612358,8.614,2445.9,2445.1,5.03864885]
[1747665612522,8.614,2445.9,2445.8,4.08864175]
[1747665613924,8.615,2446.3,2445.7,4.08879014]
[1747665614125,8.612,2446.2,2445.9,4.08833016]
[1747665614544,8.612,2446.2,2445.9,4.08842986]
[1747665614746,8.612,2446.2,2446.0,4.08829807]
[1747665614954,8.612,2446.2,2445.9,4.08840737]
[1747665615566,8.612,2446.2,2446.0,4.08828394]
[1747665615763,8.92178306,2446.3,2446.1,4.08813378]
[1747665616065,8.609,2446.2,2446.1,4.08813378]
[1747665616856,8.615,2446.3,2446.1,4.08813378]
[1747665617052,0.7902,2446.6,2446.3,4.08769454]
[1747665617252,8.91831167,2446.7,2446.0,8.7704]
[1747665617472,8.608,2446.5,2446.4,4.08756736]
[1747665618037,8.608,2446.5,2446.3,4.08770991]
[1747665618233,8.608,2446.5,2446.3,4.08780263]
[1747665618568,0.7717,2447.1,2446.2,4.08797318]
[1747665618758,12.69171371,2447.0,2446.5,4.08739874]
[1747665618955,4.85823728,2447.1,2446.6,4.08729147]
[1747665619149,4.85823728,2447.1,2446.6,4.08721196]
[1747665619150,8.605,2447.0,2446.6,4.08721196]
[1747665619350,8.90510053,2447.0,2446.6,4.08721196]
[1747665619673,4.0869762,2446.8,2446.3,4.08767178]
[1747665619856,4.08705305,2446.8,2446.3,4.08770694]
[1747665620063,4.08705305,2446.8,2446.3,12.08770694]
[1747665620262,4.08717026,2446.7,2446.3,8.0]
[1747665620567,4.08705327,2446.8,2446.3,12.08779212]
[1747665621172,0.7694,2446.7,2446.3,12.08779212]
[1747665621541,4.85656259,2446.7,2446.3,12.08779212]
[1747665621740,0.7694,2446.7,2446.3,12.08779212]
[1747665621943,8.611,2446.9,2446.4,0.761]